bitfinex/quotes_SOLUSD_20250621
["timestamp","ask_amount","ask_price","bid_price","bid_amount"]
[1750549875766,5.50172647,133.9,133.85,7.47089388]
[1750549875953,26.0,133.91,133.85,7.47089388]
[1750549876276,8.81246572,133.96,133.9,25.22988491]
[1750549876446,26.0,133.94,133.85,7.47089388]
[1750549876650,25.22988491,133.86,133.81,7.47328301]
[1750549876847,5.50479999,133.9,133.81,7.47328301]
[1750549877046,5.50479999,133.89,133.81,7.47328301]
[1750549877263,5.50479999,133.88,133.81,32.70316792]
[1750549877465,14.34814468,133.92,133.82,26.0]
[1750549877664,25.22988491,133.89,133.85,25.22988491]
[1750549877861,25.22988491,133.89,133.84,25.22988491]
[1750549878067,30.738608,133.92,133.86,26.0]
[1750549878257,25.22988491,133.92,133.86,26.0]
[1750549878450,25.22988491,133.93,133.89,25.22988491]
[1750549878748,25.22988491,133.92,133.87,7.46993351]
[1750549878948,18.64964886,133.95,133.87,32.80878756]
[1750549879257,23.53059156,133.91,133.87,31.00052507]
[1750549879762,23.53059156,133.93,133.89,23.53059156]
[1750549879947,23.53059156,133.92,133.87,7.46993351]
[1750549880150,14.3454084,133.97,133.87,7.46993351]
[1750549880151,14.3454084,133.97,133.89,23.53059156]
[1750549880462,23.53059156,133.95,133.9,23.53059156]
[1750549880771,23.53059156,133.97,133.91,33.46770218]
[1750549880969,23.53059156,133.99,133.94,23.53059156]
[1750549881171,5.51336584,133.98,133.91,52.13695765]
[1750549881364,5.51336584,133.97,133.93,23.53059156]
[1750549881680,6.88099999,134.01,133.91,52.13695765]
[1750549881976,5.51365472,134.0,133.94,23.53059156]
[1750549882147,23.53059156,133.97,133.91,52.13695765]
[1750549882351,6.88099999,134.01,133.94,23.53059156]
[1750549882572,23.53059156,133.97,133.93,23.53059156]
[1750549882767,23.53059156,133.98,133.91,52.13695765]
[1750549883072,14.34262459,134.02,133.93,23.53059156]
[1750549883283,12.39823025,134.01,133.92,23.53059156]
[1750549883455,23.53059156,133.97,133.93,7.46658702]
[1750549884178,23.53059156,133.98,133.93,30.99717858]
[1750549884377,5.51959161,133.97,133.93,7.46658702]
[1750549884681,23.53059156,133.97,133.92,30.99773612]
[1750549884893,5.51980562,133.96,133.92,30.99773612]
[1750549885094,23.53059156,133.95,133.89,7.46881768]
[1750549885251,23.53059156,133.91,133.84,18.67829892]
[1750549885455,6.88099999,133.98,133.85,7.47104968]
[1750549885456,23.53059156,133.9,133.85,7.47104968]
[1750549885700,23.53059156,133.88,133.85,7.47104968]
[1750549885995,18.64964886,133.93,133.83,7.47216618]
[1750549886279,29.04954104,133.92,133.83,31.00275774]
[1750549886480,5.51894948,133.91,133.83,7.47216618]
[1750549886693,23.53059156,133.86,133.83,7.47216618]
[1750549886985,6.88099999,133.95,133.82,7.47264589]
[1750549887165,5.51664504,133.94,133.85,26.0]
[1750549887354,23.53059156,133.91,133.86,23.53059156]
[1750549887678,23.53059156,133.9,133.85,23.53059156]
[1750549887881,5.51664504,133.92,133.85,23.53059156]
[1750549887882,5.51664504,133.91,133.86,23.53059156]
[1750549888171,23.53059156,133.91,133.85,26.0]
[1750549888379,5.51571795,133.93,133.85,26.0]
[1750549888563,95.68478316,133.92,133.74,66.43446747]
[1750549888749,26.0,133.89,133.8,23.53059156]
[1750549888952,5.51319161,133.88,133.76,23.53059156]
[1750549889175,23.53059156,133.84,133.77,18.64964886]
[1750549889367,23.53059156,133.83,133.76,18.64964886]
[1750549889595,23.53059156,133.81,133.77,23.53059156]
[1750549889776,23.53059156,133.82,133.76,26.0]
[1750549890091,23.53059156,133.82,133.77,23.53059156]
[1750549890391,23.53059156,133.84,133.76,49.53059156]
[1750549890574,31.00255533,133.84,133.76,33.47572717]
[1750549890768,31.00255533,133.84,133.76,7.47572717]
[1750549891091,23.53059156,133.77,133.74,8.4135]
[1750549891295,5.51319161,133.82,133.74,8.4135]
[1750549891502,26.0,133.88,133.77,26.0]
[1750549891796,23.58054145,133.83,133.78,23.58054145]
[1750549891982,33.46938492,133.88,133.74,15.8906529]
[1750549891983,23.58054145,133.79,133.74,15.8906529]
[1750549892187,18.64964886,133.81,133.74,8.4135]
[1750549892390,23.58054145,133.75,133.74,8.4135]
[1750549892777,23.58054145,133.76,133.74,8.4135]
[1750549892986,7.47384155,133.8,133.74,8.4135]
[1750549892987,23.58054145,133.75,133.74,8.4135]
[1750549893395,23.59173282,133.75,133.74,8.4135]
[1750549893699,6.88099999,133.85,133.75,26.0]
[1750549893882,7.46937556,133.88,133.76,18.64964886]
[1750549894199,31.49951252,133.87,133.77,23.59173282]
[1750549894381,5.49951252,133.9,133.8,23.59173282]
[1750549894700,23.59173282,133.88,133.83,23.59173282]
[1750549894914,23.59173282,133.87,133.82,26.15453593]
[1750549895074,5.49951252,133.91,133.83,23.59173282]
[1750549895275,23.59173282,133.87,133.82,26.15453593]
[1750549895583,23.59173282,133.84,133.8,7.47340234]
[1750549895895,23.59173282,133.83,133.79,26.0]
[1750549896096,23.59173282,133.83,133.78,23.59173282]
[1750549896271,23.59173282,133.82,133.77,57.06725049]
[1750549896677,24.15205228,133.88,133.77,33.47551767]
[1750549896678,23.59173282,133.8,133.77,33.47551767]
[1750549896881,23.59173282,133.84,133.77,33.47551767]
[1750549897110,23.59173282,133.84,133.77,7.47551767]
[1750549897286,23.59173282,133.84,133.72,18.64964886]
[1750549897287,23.59173282,133.78,133.74,7.47719455]
[1750549897479,5.50240342,133.84,133.74,7.47719455]
[1750549897680,23.59173282,133.78,133.74,7.47719455]
[1750549897902,23.59173282,133.77,133.74,7.47719455]
[1750549898207,44.64964886,133.83,133.74,7.47719455]
[1750549898395,23.59173282,133.77,133.74,7.47719455]
[1750549898594,23.59173282,133.75,133.65,37.40970795]
[1750549898805,18.64964886,133.81,133.64,26.18976353]
[1750549898806,26.0,133.77,133.64,26.18976353]
[1750549899104,23.59173282,133.71,133.67,26.0]
[1750549899289,23.59173282,133.71,133.67,49.59173282]
[1750549899495,23.59173282,133.73,133.65,18.64964886]
[1750549899699,23.59173282,133.76,133.68,23.59173282]
[1750549899891,23.59173282,133.73,133.68,23.59173282]
[1750549900209,23.59173282,133.72,133.68,26.0]
[1750549900459,23.59173282,133.72,133.69,7.47999102]
[1750549900584,29.0629921,133.76,133.69,7.47999102]
[1750549900790,23.59173282,133.71,133.69,7.47999102]
[1750549900979,36.53945658,133.76,133.67,7.48111019]
[1750549901182,6.88099999,133.8,133.69,49.59173282]
[1750549901484,23.59173282,133.72,133.7,26.0]
[1750549901782,23.59173282,133.76,133.67,52.18388568]
[1750549901783,23.59173282,133.71,133.67,52.18388568]
[1750549901983,23.59173282,133.69,133.65,7.48170926]
[1750549902200,23.59173282,133.66,133.63,9.09976772]
[1750549902406,5.4710543,133.73,133.63,9.09976772]
[1750549902582,23.59173282,133.69,133.64,26.0]
[1750549902778,23.59173282,133.69,133.63,9.09976772]
[1750549902779,23.59173282,133.71,133.67,23.59173282]
[1750549902997,23.59173282,133.72,133.67,23.59173282]
[1750549903207,18.64964886,133.75,133.63,27.80814158]
[1750549903385,23.59173282,133.67,133.64,26.0]
[1750549903594,23.59173282,133.67,133.63,27.80814158]
[1750549903906,23.59173282,133.67,133.63,9.09976772]
[1750549904111,23.59173282,133.66,133.63,9.09976772]
[1750549904895,23.59173282,133.68,133.63,1.6167893]
[1750549905232,23.59173282,133.68,133.63,9.10001382]
[1750549905517,18.64964886,133.69,133.63,1.6167893]
[1750549905732,23.59173282,133.68,133.63,9.10013884]
[1750549905922,18.64964886,133.72,133.63,9.10013884]
[1750549906594,47.18346564,133.64,133.35,61.03499979]
[1750549906790,47.18346564,133.64,133.12,45.26324071]
[1750549906791,23.59173282,133.6,133.45,26.22705132]
[1750549907219,26.0,133.61,133.45,26.22705132]
[1750549907408,23.59173282,133.51,133.45,26.22705132]
[1750549907607,26.0,133.54,133.46,18.64964886]
[1750549907820,26.0,133.54,133.45,26.22705132]
[1750549907994,26.0,133.54,133.45,7.49344323]
[1750549907995,23.59173282,133.5,133.45,7.49344323]
[1750549908198,26.0,133.54,133.45,7.49344323]
[1750549908403,23.59173282,133.52,133.45,7.49344323]
[1750549908606,23.59173282,133.46,133.37,26.24278322]
[1750549908815,23.69251075,133.52,133.4,26.0]
[1750549909194,26.0,133.53,133.44,25.50736352]
[1750549909414,18.64964886,133.55,133.48,26.0]
[1750549909601,7.48539371,133.6,133.49,25.50736352]
[1750549909798,18.64964886,133.63,133.49,26.0]
[1750549910116,25.50736352,133.6,133.53,26.0]
[1750549910314,7.47943156,133.7,133.58,25.50736352]
[1750549910516,7.47775368,133.73,133.62,25.50736352]
[1750549910824,7.47775368,133.73,133.58,33.48615062]
[1750549910825,25.50736352,133.66,133.59,26.0]
[1750549911026,25.50736352,133.61,133.58,7.48615062]
[1750549911202,25.50736352,133.68,133.51,37.44986635]
[1750549911203,18.64964886,133.68,133.56,33.4869846]
[1750549911531,26.17213788,133.73,133.59,25.50736352]
[1750549911695,25.50736352,133.62,133.56,33.4869846]
[1750549911898,18.64964886,133.67,133.56,33.4869846]
[1750549912098,18.64964886,133.67,133.57,25.50736352]
[1750549912338,18.64964886,133.67,133.56,33.4869846]
[1750549912708,26.13085885,133.67,133.56,33.4869846]
[1750549912912,25.50736352,133.58,133.52,7.48951467]
[1750549913116,25.50736352,133.59,133.52,33.48951467]
[1750549913316,25.50736352,133.59,133.54,25.50736352]
[1750549913621,26.0,133.63,133.52,52.21330136]
[1750549913826,26.0,133.64,133.57,25.50736352]
[1750549913827,25.50736352,133.61,133.57,25.50736352]
[1750549914007,25.50736352,133.61,133.56,25.50736352]
[1750549914320,25.50736352,133.61,133.55,26.0]
[1750549914321,26.0,133.64,133.53,26.0]
[1750549914522,25.50736352,133.61,133.56,25.50736352]
[1750549914730,25.50736352,133.61,133.56,32.99446789]
[1750549914935,25.50736352,133.68,133.58,25.50736352]
[1750549915232,3.90062196,133.66,133.58,18.64964886]
[1750549915526,25.50736352,133.68,133.63,25.50736352]
[1750549915906,25.50736352,133.68,133.62,26.0]
[1750549916106,44.64964886,133.69,133.55,7.48773181]
[1750549916308,44.64964886,133.69,133.58,51.50736352]
[1750549916309,25.50736352,133.63,133.58,51.50736352]
[1750549916509,25.50736352,133.64,133.59,25.50736352]
[1750549916816,25.50736352,133.63,133.59,26.0]
[1750549917829,25.50736352,133.63,133.59,33.48521224]
[1750549918215,25.50736352,133.64,133.59,58.99257576]
[1750549918410,7.4810735,133.68,133.59,33.48521224]
[1750549918627,25.50736352,133.63,133.59,33.48521224]
[1750549918925,25.50736352,133.61,133.58,26.0]
[1750549919151,26.0,133.65,133.55,26.20741295]
[1750549919439,25.50736352,133.58,133.55,7.48783227]
[1750549919607,18.64964886,133.63,133.55,7.48783227]
[1750549919816,25.50736352,133.6,133.56,25.50736352]
[1750549920027,25.50736352,133.6,133.56,7.48677189]
[1750549920313,25.50736352,133.63,133.57,26.0]
[1750549920510,18.64964886,133.66,133.58,25.50736352]
[1750549920712,44.64964886,133.66,133.56,32.99413541]
[1750549920915,26.0,133.58,133.5,25.50736352]
[1750549921117,26.0,133.58,133.47,7.49232037]
[1750549921331,26.0,133.58,133.51,25.50736352]
[1750549921628,26.0,133.58,133.47,26.14196923]
[1750549921629,25.50736352,133.57,133.53,25.50736352]
[1750549921846,26.0,133.58,133.48,18.64964886]
[1750549921847,26.0,133.58,133.51,26.0]
[1750549922014,26.0,133.58,133.51,33.48953541]
[1750549922216,25.50736352,133.55,133.51,33.48953541]
[1750549922542,25.50736352,133.54,133.51,7.48953541]
[1750549922717,33.48646707,133.58,133.51,7.48953541]
[1750549922914,26.0,133.58,133.51,32.99689893]
[1750549923133,18.64964886,133.57,133.5,26.0]
[1750549923317,18.64964886,133.57,133.49,7.49074295]
[1750549923318,25.50736352,133.51,133.49,7.49074295]
[1750549923513,25.50736352,133.52,133.49,7.49074295]
[1750549923918,18.64964886,133.57,133.49,7.49074295]
[1750549924121,25.50736352,133.56,133.49,7.49074295]
[1750549924346,25.50736352,133.55,133.49,7.49074295]
[1750549924640,26.0,133.58,133.48,7.49169833]
[1750549924641,25.50736352,133.51,133.48,7.49169833]
[1750549924814,25.50736352,133.5,133.47,33.49224314]
[1750549925012,25.50736352,133.48,133.43,25.50736352]
[1750549925218,25.50736352,133.46,133.41,25.50736352]
[1750549925434,26.0,133.51,133.43,51.50736352]
[1750549925435,25.50736352,133.48,133.43,51.50736352]
[1750549925725,25.50736352,133.47,133.42,25.50736352]
[1750549926124,25.50736352,133.47,133.43,7.49456643]
[1750549926515,26.0,133.41,133.35,7.49900082]
[1750549926722,18.64964886,133.4,133.31,25.50736352]
[1750549926939,25.50736352,133.37,133.3,25.50736352]
[1750549927238,44.15701238,133.37,133.31,7.50127981]
[1750549927458,44.15701238,133.37,133.32,7.5007385]
[1750549927742,26.0,133.38,133.34,25.50736352]
[1750549927743,25.50736352,133.38,133.34,25.50736352]
[1750549927943,26.0,133.46,133.36,35.11496143]
[1750549928245,25.50736352,133.41,133.36,9.11496143]
[1750549928413,26.0,133.41,133.36,1.6167893]
[1750549928612,26.0,133.41,133.36,9.11528319]
[1750549928613,25.50736352,133.39,133.36,9.11528319]
[1750549928923,18.64964886,133.4,133.36,1.6167893]
[1750549929119,25.50736352,133.39,133.36,9.11504403]
[1750549929451,25.50736352,133.37,133.36,1.6167893]
[1750549929618,44.15701238,133.37,133.36,1.6167893]
[1750549930752,70.15701238,133.37,133.36,1.6167893]
[1750549930918,44.64964886,133.37,133.36,1.6167893]
[1750549931120,70.21461186,133.37,133.36,1.6167893]
[1750549931324,49.73190082,133.37,133.36,1.6167893]
[1750549932327,23.73190082,133.37,133.36,1.6167893]
[1750549932536,23.73190082,133.38,133.36,9.11528959]
[1750549932941,18.64964886,133.43,133.36,9.11528959]
[1750549933140,23.73190082,133.43,133.39,23.73190082]
[1750549933453,23.73190082,133.41,133.36,53.86154033]
[1750549933619,18.64964886,133.46,133.39,23.73190082]
[1750549933821,23.73190082,133.44,133.39,23.73190082]
[1750549934017,23.73190082,133.44,133.38,7.49737591]
[1750549934220,23.73190082,133.44,133.38,26.2408157]
[1750549934425,23.73190082,133.43,133.39,23.73190082]
[1750549934742,23.73190082,133.4,133.38,7.49737591]
[1750549934945,23.73190082,133.4,133.36,51.34869012]
[1750549934946,23.73190082,133.39,133.37,7.49790854]
[1750549935133,26.0,133.43,133.37,7.49790854]
[1750549935134,26.0,133.41,133.37,7.49790854]
[1750549935648,26.0,133.41,133.36,9.11527962]
[1750549935845,23.73190082,133.38,133.36,9.11527962]
[1750549936019,18.64964886,133.4,133.36,1.6167893]
[1750549936223,44.52,133.48,133.36,32.84708091]
[1750549936453,44.52,133.48,133.37,23.73190082]
[1750549936454,23.73190082,133.41,133.37,23.73190082]
[1750549936623,23.73190082,133.4,133.36,32.84708091]
[1750549936823,23.73190082,133.41,133.36,32.84708091]
[1750549937336,18.64964886,133.43,133.36,9.11518009]
[1750549937337,23.73190082,133.39,133.36,9.11518009]
[1750549937739,23.73190082,133.4,133.36,9.11518009]
[1750549937972,18.64964886,133.43,133.36,9.11518009]
[1750549937973,23.73190082,133.39,133.36,9.11518009]
[1750549938169,23.73190082,133.38,133.36,1.6167893]
[1750549938375,18.64964886,133.4,133.36,1.6167893]
[1750549938731,23.73190082,133.37,133.36,1.6167893]
[1750549939047,18.64964886,133.4,133.36,9.1152655]
[1750549939246,23.73190082,133.38,133.36,9.1152655]
[1750549939434,23.73190082,133.4,133.36,32.84716632]
[1750549939637,23.73190082,133.4,133.36,9.1152655]
[1750549939835,26.0,133.42,133.36,9.1152655]
[1750549940036,44.52,133.48,133.36,27.86151624]
[1750549940227,18.64964886,133.46,133.36,51.59341706]
[1750549940432,18.64964886,133.46,133.38,23.73190082]
[1750549940741,23.73190082,133.45,133.41,23.73190082]
[1750549941136,49.73190082,133.46,133.41,23.73190082]
[1750549941348,23.73190082,133.45,133.39,26.0]
[1750549941738,26.0,133.46,133.39,26.0]
[1750549942154,23.73190082,133.45,133.42,7.49512816]
[1750549942355,23.73190082,133.43,133.41,7.49566452]
[1750549942557,23.73190082,133.44,133.41,7.49566452]
[1750549943474,26.0,133.46,133.41,7.49566452]
[1750549943645,49.73190082,133.46,133.41,7.49566452]
[1750549944665,49.73190082,133.46,133.4,26.23625548]
[1750549944855,23.73190082,133.45,133.4,26.23625548]
[1750549945338,18.64964886,133.5,133.4,26.23625548]
[1750549945544,7.4901795,133.51,133.4,7.49625187]
[1750549945545,18.64964886,133.46,133.4,7.49625187]
[1750549945743,26.0,133.47,133.41,23.73190082]
[1750549946056,18.64964886,133.5,133.44,23.73190082]
[1750549946378,3.90538004,133.53,133.45,23.73190082]
[1750549946672,23.73190082,133.5,133.47,7.49232037]
[1750549947531,14.36774081,133.57,133.49,23.73190082]
[1750549947876,14.36774081,133.57,133.47,7.49232037]
[1750549947877,3.9032732,133.57,133.5,26.0]
[1750549948030,27.63517402,133.57,133.5,26.0]
[1750549948231,29.17459184,133.6,133.5,26.0]
[1750549948436,26.0,133.57,133.52,31.22141549]
[1750549948644,23.73190082,133.58,133.52,7.48951467]
[1750549948848,23.73190082,133.57,133.53,23.73190082]
[1750549949042,23.73190082,133.58,133.53,23.73190082]
[1750549949239,18.64964886,133.59,133.53,23.73190082]
[1750549949440,23.73190082,133.61,133.56,23.73190082]
[1750549949659,23.73190082,133.63,133.58,23.73190082]
[1750549949837,26.0,133.64,133.59,23.73190082]
[1750549950037,5.45130062,133.65,133.56,26.0]
[1750549950339,31.45130062,133.65,133.58,23.73190082]
[1750549950539,5.45130062,133.66,133.61,7.48446972]
[1750549950858,5.45130062,133.68,133.62,23.73190082]
[1750549951052,23.73190082,133.65,133.61,31.21637054]
[1750549951256,23.73190082,133.65,133.61,7.48446972]
[1750549951443,23.73190082,133.65,133.61,31.21637054]
[1750549951776,18.64964886,133.66,133.61,31.21637054]
[1750549952064,23.73190082,133.65,133.61,31.21637054]
[1750549952264,23.73190082,133.64,133.59,7.48559023]
[1750549952478,23.73190082,133.61,133.47,10.0]
[1750549952633,5.45438316,133.62,133.56,23.73190082]
[1750549952838,49.73190082,133.63,133.58,23.73190082]
[1750549953054,49.73190082,133.63,133.59,5.48429845]
[1750549953270,23.73190082,133.64,133.6,29.21605372]
[1750549953469,23.73190082,133.64,133.55,26.0]
[1750549953470,3.9004113,133.69,133.61,5.48382261]
[1750549953642,18.64964886,133.64,133.52,23.73190082]
[1750549953841,23.73190082,133.63,133.59,23.73190082]
[1750549954041,42.38154968,133.64,133.59,23.73190082]
[1750549954240,23.73190082,133.63,133.59,23.73190082]
[1750549954550,23.73190082,133.63,133.59,7.48559023]
[1750549954744,23.73190082,133.62,133.57,31.2186119]
[1750549954943,24.10000885,133.64,133.57,31.2186119]
[1750549955150,23.73190082,133.61,133.57,31.2186119]
[1750549955349,23.73190082,133.61,133.57,7.48671108]
[1750549955672,26.13265756,133.64,133.57,7.48671108]
[1750549955867,23.73190082,133.6,133.57,7.48671108]
[1750549956247,5.44962943,133.63,133.57,7.48671108]
[1750549956445,23.73190082,133.59,133.55,31.21973309]
[1750549956648,23.73190082,133.58,133.55,7.48783227]
[1750549956872,23.73190082,133.57,133.53,7.48895379]
[1750549957044,23.73190082,133.56,133.53,7.48895379]
[1750549957357,23.73190082,133.54,133.5,31.22253752]
[1750549957558,23.73190082,133.54,133.5,7.4906367]
[1750549958641,18.64964886,133.58,133.5,31.22253752]
[1750549958872,23.73190082,133.58,133.54,23.73190082]
[1750549959078,23.73190082,133.59,133.55,23.73190082]
[1750549959244,23.73190082,133.59,133.54,23.73190082]
[1750549960043,23.73190082,133.58,133.54,23.73190082]
[1750549960249,23.73190082,133.57,133.52,23.73190082]
[1750549960565,26.0,133.58,133.53,31.22085461]
[1750549960762,18.64964886,133.64,133.55,23.73190082]
[1750549961064,26.13253858,133.64,133.55,23.73190082]
[1750549961273,23.73190082,133.6,133.55,23.73190082]
[1750549961642,23.73190082,133.59,133.55,23.73190082]
[1750549961845,23.73190082,133.58,133.54,23.73190082]
[1750549962251,23.73190082,133.58,133.53,33.48895379]
[1750549962455,23.73190082,133.58,133.54,23.73190082]
[1750549962665,26.0,133.61,133.55,31.21973309]
[1750549962666,23.73190082,133.59,133.55,31.21973309]
[1750549963275,23.73190082,133.58,133.55,7.48783227]
[1750549963469,23.73190082,133.57,133.53,7.48840541]
[1750549963674,23.73190082,133.56,133.53,7.48840541]
[1750549964054,49.73190082,133.6,133.5,26.0]
[1750549964055,23.73190082,133.54,133.5,26.0]
[1750549964260,23.73190082,133.53,133.49,7.49119784]
[1750549964459,23.73190082,133.54,133.49,31.22309866]
[1750549964658,23.73190082,133.53,133.49,31.22309866]
[1750549965068,44.64964886,133.57,133.49,7.49119784]
[1750549965374,6.88099999,133.63,133.53,23.73190082]
[1750549965677,6.88099999,133.63,133.49,26.21919244]
[1750549965678,23.73190082,133.61,133.56,23.73190082]
[1750549965876,23.73190082,133.62,133.58,23.73190082]
[1750549966191,5.46111432,133.67,133.58,23.73190082]
[1750549966192,23.73190082,133.63,133.58,23.73190082]
[1750549966476,23.73190082,133.64,133.6,23.73190082]
[1750549966671,23.73190082,133.64,133.61,7.48446972]
[1750549966851,23.73190082,133.66,133.61,7.48446972]
[1750549967046,23.73190082,133.65,133.61,31.21637054]
[1750549967250,23.73190082,133.62,133.58,7.48615062]
[1750549967450,18.64964886,133.65,133.59,23.73190082]
[1750549967759,23.73190082,133.65,133.6,23.73190082]
[1750549968000,49.73190082,133.65,133.6,23.73190082]
[1750549968162,23.73190082,133.64,133.58,26.20152717]
[1750549968450,18.64964886,133.64,133.58,7.48615062]
[1750549968674,23.73190082,133.62,133.58,31.21805144]
[1750549968857,23.73190082,133.64,133.6,23.73190082]
[1750549970164,26.0,133.65,133.61,7.48446972]
[1750549970372,23.73190082,133.64,133.61,7.48446972]
[1750549970687,23.73190082,133.66,133.62,23.73190082]
[1750549970897,23.73190082,133.66,133.61,7.48446972]
[1750549971061,23.73190082,133.66,133.62,23.73190082]
[1750549971376,68.38154968,133.68,133.63,23.73190082]
[1750549971586,23.73190082,133.67,133.63,23.73190082]
[1750549972163,23.73190082,133.64,133.61,7.48446972]
[1750549972365,26.0,133.68,133.61,26.19564403]
[1750549972579,49.73190082,133.68,133.63,23.73190082]
[1750549974090,23.73190082,133.67,133.63,23.73190082]
[1750549974269,23.73190082,133.67,133.61,33.48446972]
[1750549974467,23.73190082,133.67,133.62,23.73190082]
[1750549974662,23.73190082,133.66,133.61,52.19564403]
[1750549974982,26.0,133.68,133.57,37.43239972]
[1750549974983,23.73190082,133.63,133.57,7.48671108]
[1750549975156,18.64964886,133.67,133.61,23.73190082]
[1750549975356,23.73190082,133.65,133.61,23.73190082]
[1750549975562,23.73190082,133.67,133.63,23.73190082]
[1750549975889,26.0,133.68,133.63,23.73190082]
[1750549976066,26.0,133.7,133.6,49.73190082]
[1750549976261,42.38154968,133.69,133.64,23.73190082]
[1750549976464,42.38154968,133.69,133.65,23.73190082]
[1750549976983,23.73190082,133.68,133.61,26.19564403]
[1750549977498,23.73190082,133.71,133.67,23.73190082]
[1750549977804,18.64964886,133.74,133.67,23.73190082]
[1750549977805,23.73190082,133.72,133.67,23.73190082]
[1750549978282,23.73190082,133.71,133.68,7.48055056]
[1750549979091,23.73190082,133.75,133.68,52.18192698]
[1750549979264,23.73190082,133.72,133.68,33.48055056]
[1750549979471,3.89800533,133.74,133.68,33.48055056]
[1750549980076,23.73190082,133.71,133.68,33.48055056]
[1750549980279,3.89800533,133.74,133.68,33.48055056]
[1750549980491,24.11078565,133.75,133.68,33.48055056]
[1750549981003,31.58744233,133.75,133.68,33.48055056]
[1750549981165,31.58744233,133.75,133.67,23.73190082]
[1750549981166,23.73190082,133.7,133.66,35.26888655]
[1750549981365,23.73190082,133.7,133.66,59.00078737]
[1750549981593,23.73190082,133.71,133.66,35.26888655]
[1750549981893,23.73190082,133.67,133.66,7.48118655]
[1750549982202,23.73190082,133.69,133.66,7.48118655]
[1750549982397,5.46113679,133.72,133.67,23.73190082]
[1750549982602,24.1171337,133.74,133.64,23.73190082]
[1750549982767,3.89890621,133.72,133.65,26.0]
[1750549983101,23.73190082,133.68,133.65,26.0]
[1750549984094,5.46748484,133.7,133.67,26.0]
[1750549984290,23.73190082,133.68,133.67,26.0]
[1750549984497,5.46748484,133.69,133.67,33.48111019]
[1750549984684,29.19938566,133.71,133.67,33.48111019]
[1750549984879,5.47658117,133.73,133.7,23.73190082]
[1750549985188,5.47731141,133.72,133.71,49.73190082]
[1750549985403,5.47787694,133.74,133.73,26.0]
[1750549985600,5.48105239,133.78,133.73,49.73190082]
[1750549985912,5.48306211,133.82,133.8,26.0]
[1750549986194,23.73190082,133.83,133.74,49.73190082]
[1750549986195,5.48306211,133.81,133.74,49.73190082]
[1750549986370,5.48306211,133.8,133.78,26.0]
[1750549986568,18.64964886,133.82,133.76,26.0]
[1750549986569,29.21496293,133.79,133.76,26.0]
[1750549986795,23.73190082,133.77,133.74,26.0]
[1750549986999,23.73190082,133.75,133.74,26.0]
[1750549987181,5.4795092,133.75,133.72,26.0]
[1750549987494,29.21141002,133.74,133.71,7.47887218]
[1750549987669,6.88099999,133.78,133.71,26.17605264]
[1750549987873,23.73190082,133.75,133.71,75.90795346]
[1750549988084,23.73190082,133.75,133.71,52.17605264]
[1750549988584,18.64964886,133.77,133.71,75.90795346]
[1750549988785,5.48771811,133.76,133.71,75.90795346]
[1750549988994,23.73190082,133.74,133.73,26.0]
[1750549989203,29.21898952,133.74,133.67,7.48111019]
[1750549989382,23.73190082,133.7,133.67,7.48111019]
[1750549989586,23.73190082,133.71,133.67,7.48111019]
[1750549989907,23.73190082,133.76,133.7,26.0]
[1750549990109,29.22286762,133.75,133.7,26.0]
[1750549990287,25.53064885,133.77,133.7,26.0]
[1750549990288,5.4909668,133.74,133.71,23.73190082]
[1750549990469,23.73190082,133.76,133.72,7.47831289]
[1750549990809,23.73190082,133.73,133.69,23.73190082]
[1750549990971,23.73190082,133.7,133.66,23.73190082]
[1750549991294,25.53064885,133.74,133.67,23.73190082]
[1750549991495,23.73190082,133.68,133.65,7.48213206]
[1750549992190,5.49741909,133.67,133.65,7.48213206]
[1750549992400,23.73190082,133.67,133.64,7.48278958]
[1750549992577,23.73190082,133.65,133.61,7.48446972]
[1750549992895,23.73190082,133.63,133.61,7.48446972]
[1750549993096,18.64964886,133.66,133.61,7.48446972]
[1750549993399,23.73190082,133.64,133.61,7.48446972]
[1750549993886,5.50322046,133.63,133.61,7.48446972]
[1750549994090,18.64964886,133.66,133.61,26.19564403]
[1750549994288,5.50396438,133.65,133.61,7.48446972]
[1750549994486,29.2358652,133.64,133.6,49.92888551]
[1750549994689,23.73190082,133.65,133.61,23.73190082]
[1750549994886,5.50541696,133.64,133.6,26.19698469]
[1750549995176,23.73190082,133.65,133.61,23.73190082]
[1750549995686,18.64964886,133.68,133.62,23.73190082]
[1750549995869,29.23897426,133.67,133.62,23.73190082]
[1750549996075,29.23897426,133.66,133.62,23.73190082]
[1750549996276,5.50707344,133.65,133.62,23.73190082]
[1750549996582,23.73190082,133.64,133.61,7.48446972]
[1750549997610,23.73190082,133.65,133.61,31.21637054]
[1750549997771,23.73190082,133.65,133.61,7.48446972]
[1750549998169,23.73190082,133.63,133.61,7.48446972]
[1750549998405,24.15583367,133.64,133.61,7.48446972]
[1750549998704,24.15583367,133.64,133.58,23.73190082]